lending/lending_fUSD_20250425
["ID","MTS","AMOUNT","RATE_DAILY","PERIOD"]
[358980649,1745601037536,-13582.38430406,0.00030126,2]
[358980650,1745601037546,-400277.78375297,0.00030126,2]
[358980651,1745601037558,-656.04999995,0.00030126,2]
[358980652,1745601037571,-14159.43070995,0.00030126,2]
[358980653,1745601037596,-30929.58534113,0.00030126,2]
[358980654,1745601037606,-1000.0,0.00030134,2]
[358980655,1745601037616,-532.38652964,0.00030136,2]
[358980656,1745601037627,-500.0,0.00030136,2]
[358980657,1745601037637,-500.0,0.00030136,2]
[358980658,1745601037647,-500.0,0.00030136,2]
[358980659,1745601037657,-526.31012939,0.00030136,2]
[358980660,1745601037667,-500.0,0.00030136,2]
[358980661,1745601037678,-500.0,0.00030136,2]
[358980662,1745601037688,-500.0,0.00030136,2]
[358980663,1745601037698,-555.45849129,0.00030136,2]
[358980664,1745601037709,-511.77101552,0.00030136,2]
[358980665,1745601037719,-500.0,0.00030136,2]
[358980666,1745601037729,-500.0,0.00030136,2]
[358980667,1745601037739,-500.0,0.00030136,2]
[358980668,1745601037752,-500.0,0.00030136,2]
[358980670,1745601037762,-500.0,0.00030136,2]
[358980671,1745601037772,-500.0,0.00030136,2]
[358980672,1745601037782,-150.11792545,0.00030136,2]
[358980673,1745601037792,-507.21769414,0.00030136,2]
[358980674,1745601037802,-1026.86636,0.00030136,2]
[358980676,1745601037812,-500.0,0.00030136,2]
[358980678,1745601037822,-500.0,0.00030136,2]
[358980680,1745601037832,-500.0,0.00030136,2]
[358980681,1745601037842,-500.0,0.00030136,2]
[358980682,1745601037852,-615.79609672,0.00030136,2]
[358980683,1745601037862,-500.0,0.00030136,2]
[358980684,1745601037872,-169.583062,0.00030136,2]
[358980685,1745601037882,-500.0,0.00030136,2]
[358980686,1745601037891,-500.0,0.00030136,2]
[358980687,1745601037902,-1033.314468,0.00030136,2]
[358980688,1745601037912,-500.0,0.00030136,2]
[358980689,1745601037922,-500.0,0.00030136,2]
[358980690,1745601037933,-500.0,0.00030136,2]
[358980691,1745601037944,-165.044946,0.00030136,2]
[358980692,1745601037955,-500.0,0.00030136,2]
[358980693,1745601037965,-500.0,0.00030136,2]
[358980694,1745601037976,-500.0,0.00030136,2]
[358980695,1745601037986,-500.0,0.00030136,2]
[358980697,1745601037997,-506.12729265,0.00030136,2]
[358980698,1745601038008,-500.0,0.00030136,2]
[358980699,1745601038018,-515.55,0.00030136,2]
[358980700,1745601038028,-500.0,0.00030136,2]
[358980701,1745601038039,-500.0,0.00030136,2]
[358980702,1745601038049,-520.83,0.00030136,2]
[358980703,1745601038060,-511.84,0.00030136,2]
[358980704,1745601038070,-734.93,0.00030136,2]
[358980705,1745601038080,-500.0,0.00030136,2]
[358980706,1745601038090,-500.0,0.00030136,2]
[358980707,1745601038101,-500.0,0.00030136,2]
[358980708,1745601038111,-500.0,0.00030136,2]
[358980709,1745601038121,-500.0,0.00030136,2]
[358980710,1745601038131,-500.0,0.00030136,2]
[358980711,1745601038141,-500.0,0.00030136,2]
[358980712,1745601038151,-500.0,0.00030136,2]
[358980713,1745601038162,-661.21,0.00030136,2]
[358980714,1745601038176,-500.0,0.00030136,2]
[358980715,1745601038186,-1021.89,0.00030136,2]
[358980716,1745601038196,-500.0,0.00030136,2]
[358980717,1745601038206,-500.0,0.00030136,2]
[358980718,1745601038218,-500.0,0.00030136,2]
[358980719,1745601038228,-500.0,0.00030136,2]
[358980720,1745601038239,-500.0,0.00030136,2]
[358980721,1745601038251,-500.0,0.00030136,2]
[358980722,1745601038262,-500.0,0.00030136,2]
[358980723,1745601038272,-500.0,0.00030136,2]
[358980724,1745601038283,-500.0,0.00030136,2]
[358980725,1745601038292,-500.0,0.00030136,2]
[358980726,1745601038303,-500.0,0.00030136,2]
[358980727,1745601038315,-500.0,0.00030136,2]
[358980728,1745601038328,-500.0,0.00030136,2]
[358980729,1745601038339,-500.0,0.00030136,2]
[358980730,1745601038349,-500.0,0.00030136,2]
[358980731,1745601038361,-500.0,0.00030136,2]
[358980732,1745601038372,-604.38,0.00030136,2]
[358980733,1745601038383,-955.99,0.00030136,2]
[358980734,1745601038394,-500.0,0.00030136,2]
[358980735,1745601038406,-500.0,0.00030136,2]
[358980736,1745601038417,-500.0,0.00030136,2]
[358980737,1745601038428,-500.0,0.00030136,2]
[358980738,1745601038438,-560.13,0.00030136,2]
[358980739,1745601038449,-452.19112073,0.00030136,2]
[358980740,1745601038460,-508.03871539,0.00030136,2]
[358980741,1745601038470,-500.0,0.00030136,2]
[358980742,1745601038480,-500.0,0.00030136,2]
[358980743,1745601038490,-597.2878093,0.00030136,2]
[358980744,1745601038500,-269.92028142,0.00030136,2]
[358980745,1745601038512,-500.0,0.00030136,2]
[358980746,1745601038522,-500.0,0.00030136,2]
[358980747,1745601038533,-825.68,0.00030136,2]
[358980748,1745601038543,-500.0,0.00030136,2]
[358980749,1745601038554,-721.98,0.00030136,2]
[358980750,1745601038564,-500.0,0.00030136,2]
[358980751,1745601038574,-500.0,0.00030136,2]
[358980752,1745601038584,-500.0,0.00030136,2]
[358980753,1745601038594,-500.0,0.00030136,2]
[358980754,1745601038606,-500.0,0.00030136,2]
[358980755,1745601038617,-500.0,0.00030136,2]
[358980756,1745601038628,-500.0,0.00030136,2]
[358980757,1745601038639,-512.19,0.00030136,2]
[358980758,1745601038650,-940.12,0.00030136,2]
[358980759,1745601038660,-500.0,0.00030136,2]
[358980760,1745601038672,-765.36,0.00030136,2]
[358980761,1745601038682,-780.85,0.00030136,2]
[358980762,1745601038693,-500.0,0.00030136,2]
[358980763,1745601038704,-2272.24,0.00030136,2]
[358980764,1745601038716,-267.96225915,0.00030136,2]
[358980765,1745601038727,-500.0,0.00030136,2]
[358980766,1745601038738,-500.0,0.00030136,2]
[358980767,1745601038751,-500.0,0.00030136,2]
[358980768,1745601038762,-500.0,0.00030136,2]
[358980769,1745601038772,-500.0,0.00030136,2]
[358980770,1745601038783,-500.0,0.00030136,2]
[358980771,1745601038794,-532.45,0.00030136,2]
[358980772,1745601038804,-550.16,0.00030136,2]
[358980773,1745601038815,-852.91,0.00030136,2]
[358980774,1745601038827,-540.9,0.00030136,2]
[358980775,1745601038837,-500.0,0.00030136,2]
[358980776,1745601038849,-500.0,0.00030136,2]
[358980777,1745601038859,-500.0,0.00030136,2]
[358980778,1745601038869,-500.0,0.00030136,2]
[358980779,1745601038880,-798.5,0.00030136,2]
[358980780,1745601038891,-500.0,0.00030136,2]
[358980781,1745601038903,-902.08,0.00030136,2]
[358980782,1745601038913,-500.0,0.00030136,2]
[358980783,1745601038923,-919.41,0.00030136,2]
[358980784,1745601038934,-500.0,0.00030136,2]
[358980785,1745601038945,-500.0,0.00030136,2]
[358980786,1745601038955,-500.0,0.00030136,2]
[358980787,1745601038966,-500.0,0.00030136,2]
[358980788,1745601038976,-500.0,0.00030136,2]
[358980789,1745601038986,-500.0,0.00030136,2]
[358980790,1745601038997,-500.0,0.00030136,2]
[358980791,1745601039009,-500.0,0.00030136,2]
[358980792,1745601039019,-500.0,0.00030136,2]
[358980793,1745601039030,-500.0,0.00030136,2]
[358980794,1745601039041,-500.0,0.00030136,2]
[358980795,1745601039051,-500.0,0.00030136,2]
[358980796,1745601039062,-500.0,0.00030136,2]
[358980797,1745601039072,-500.0,0.00030136,2]
[358980798,1745601039083,-500.0,0.00030136,2]
[358980799,1745601039093,-500.0,0.00030136,2]
[358980800,1745601039103,-500.0,0.00030136,2]
[358980801,1745601039113,-500.0,0.00030136,2]
[358980802,1745601039124,-500.0,0.00030136,2]
[358980803,1745601039134,-500.0,0.00030136,2]
[358980804,1745601039144,-500.0,0.00030136,2]
[358980805,1745601039155,-500.0,0.00030136,2]
[358980806,1745601039168,-500.0,0.00030136,2]
[358980807,1745601039179,-500.0,0.00030136,2]
[358980808,1745601039189,-469.22,0.00030136,2]
[358980809,1745601039200,-619.58,0.00030136,2]
[358980810,1745601039211,-500.0,0.00030136,2]
[358980811,1745601039221,-785.19,0.00030136,2]
[358980812,1745601039233,-500.0,0.00030136,2]
[358980813,1745601039245,-500.0,0.00030136,2]
[358980814,1745601039256,-500.0,0.00030136,2]
[358980815,1745601039266,-515.60576483,0.00030136,2]
[358980816,1745601039276,-500.0,0.00030136,2]
[358980817,1745601039286,-558.58,0.00030136,2]
[358980818,1745601039297,-842.41,0.00030136,2]
[358980819,1745601039307,-882.07,0.00030136,2]
[358980820,1745601039317,-1044.64,0.00030136,2]
[358980821,1745601039328,-500.0,0.00030136,2]
[358980822,1745601039339,-500.0,0.00030136,2]
[358980823,1745601039350,-500.0,0.00030136,2]
[358980824,1745601039360,-638.33,0.00030136,2]
[358980825,1745601039371,-763.49,0.00030136,2]
[358980826,1745601039382,-500.0,0.00030136,2]
[358980829,1745601039393,-500.0,0.00030136,2]
[358980831,1745601039404,-1060.93,0.00030136,2]
[358980833,1745601039414,-596.09,0.00030136,2]
[358980836,1745601039425,-500.0,0.00030136,2]
[358980838,1745601039435,-500.0,0.00030136,2]
[358980840,1745601039446,-797.77,0.00030136,2]
[358980847,1745601039802,-500.0,0.00030136,2]
[358980848,1745601039812,-500.0,0.00030136,2]
[358980849,1745601039822,-500.0,0.00030136,2]
[358980850,1745601039832,-500.0,0.00030136,2]
[358980851,1745601039843,-500.43248995,0.00030136,2]
[358980852,1745601039853,-500.0,0.00030136,2]
[358980853,1745601039863,-500.0,0.00030136,2]
[358980854,1745601039873,-500.0,0.00030136,2]
[358980855,1745601039883,-500.0,0.00030136,2]
[358980856,1745601039893,-566.15272748,0.00030136,2]
[358980857,1745601039904,-500.0,0.00030136,2]
[358980858,1745601039914,-651.19,0.00030136,2]
[358980859,1745601039926,-500.0,0.00030136,2]
[358980860,1745601039936,-500.0,0.00030136,2]
[358980861,1745601039946,-500.0,0.00030136,2]
[358980862,1745601039958,-500.0,0.00030136,2]
[358980863,1745601039968,-500.0,0.00030136,2]
[358980864,1745601039977,-596.41,0.00030136,2]
[358980865,1745601039987,-500.0,0.00030136,2]
[358980866,1745601039997,-500.0,0.00030136,2]
[358980867,1745601040008,-500.0,0.00030136,2]
[358980868,1745601040018,-500.0,0.00030136,2]
[358980869,1745601040031,-610.87,0.00030136,2]
[358980870,1745601040041,-500.0,0.00030136,2]
[358980871,1745601040053,-500.0,0.00030136,2]
[358980872,1745601040063,-793.56,0.00030136,2]
[358980873,1745601040074,-500.0,0.00030136,2]
[358980874,1745601040084,-770.56,0.00030136,2]
[358980875,1745601040095,-500.0,0.00030136,2]
[358980876,1745601040105,-1170.58,0.00030136,2]
[358980877,1745601040128,-500.0,0.00030136,2]
[358980878,1745601040140,-500.0,0.00030136,2]
[358980880,1745601040152,-506.94,0.00030136,2]
[358980882,1745601040165,-500.0,0.00030136,2]
[358980884,1745601040176,-500.0,0.00030136,2]
[358980885,1745601040187,-500.0,0.00030136,2]
[358980886,1745601040197,-500.0,0.00030136,2]
[358980887,1745601040210,-500.0,0.00030136,2]
[358980888,1745601040222,-500.0,0.00030136,2]
[358980889,1745601040233,-805.62,0.00030136,2]
[358980890,1745601040247,-676.3,0.00030136,2]
[358980892,1745601040257,-500.0,0.00030136,2]
[358980894,1745601040267,-628.9,0.00030136,2]
[358980896,1745601040277,-500.0,0.00030136,2]
[358980897,1745601040288,-525.25,0.00030136,2]
[358980898,1745601040299,-500.0,0.00030136,2]
[358980899,1745601040310,-336.4605368,0.00030136,2]
[358980900,1745601040322,-174.55732757,0.00030136,2]
[358980901,1745601040334,-500.0,0.00030136,2]
[358980902,1745601040344,-500.0,0.00030136,2]
[358980903,1745601040355,-500.0,0.00030136,2]
[358980904,1745601040366,-500.0,0.00030136,2]
[358980905,1745601040377,-500.0,0.00030136,2]
[358980907,1745601040387,-500.0,0.00030136,2]
[358980908,1745601040399,-500.0,0.00030136,2]
[358980909,1745601040410,-661.71,0.00030136,2]
[358980910,1745601040421,-944.9,0.00030136,2]
[358980911,1745601040433,-627.95,0.00030136,2]
[358980912,1745601040443,-866.13,0.00030136,2]
[358980913,1745601040455,-500.0,0.00030136,2]
[358980914,1745601040466,-500.0,0.00030136,2]
[358980915,1745601040476,-557.53,0.00030136,2]
[358980916,1745601040487,-500.0,0.00030136,2]
[358980917,1745601040498,-500.0,0.00030136,2]
[358980918,1745601040508,-500.0,0.00030136,2]
[358980919,1745601040520,-500.0,0.00030136,2]
[358980920,1745601040530,-500.0,0.00030136,2]
[358980921,1745601040540,-833.85,0.00030136,2]
[358980922,1745601040556,-500.0,0.00030136,2]
[358980923,1745601040567,-716.6,0.00030136,2]
[358980924,1745601040578,-500.0,0.00030136,2]
[358980925,1745601040589,-1101.5,0.00030136,2]
[358980926,1745601040600,-500.0,0.00030136,2]
[358980927,1745601040612,-500.0,0.00030136,2]
[358980928,1745601040623,-802.97,0.00030136,2]
[358980929,1745601040635,-500.0,0.00030136,2]
[358980930,1745601040646,-500.0,0.00030136,2]
[358980931,1745601040657,-500.0,0.00030136,2]
[358980932,1745601040668,-500.0,0.00030136,2]
[358980933,1745601040679,-500.0,0.00030136,2]
[358980934,1745601040690,-500.0,0.00030136,2]
[358980935,1745601040701,-500.0,0.00030136,2]
[358980936,1745601040711,-500.0,0.00030136,2]
[358980937,1745601040722,-500.0,0.00030136,2]
[358980938,1745601040733,-517.87,0.00030136,2]
[358980939,1745601040744,-500.0,0.00030136,2]
[358980940,1745601040754,-500.0,0.00030136,2]
[358980941,1745601040765,-500.0,0.00030136,2]
[358980942,1745601040775,-500.0,0.00030136,2]
[358980943,1745601040786,-500.0,0.00030136,2]
[358980944,1745601040796,-500.0,0.00030136,2]
[358980945,1745601040807,-500.0,0.00030136,2]
[358980946,1745601040818,-500.0,0.00030136,2]
[358980947,1745601040829,-593.44,0.00030136,2]
[358980948,1745601040839,-500.0,0.00030136,2]
[358980949,1745601040850,-500.0,0.00030136,2]
[358980950,1745601040861,-521.02001428,0.00030136,2]
[358980951,1745601040872,-1095.86,0.00030136,2]
[358980952,1745601040882,-500.0,0.00030136,2]
[358980953,1745601040893,-1811.99,0.00030136,2]
[358980954,1745601040904,-500.0,0.00030136,2]
[358980955,1745601040914,-562.16808376,0.00030136,2]
[358980956,1745601040925,-530.62037653,0.00030136,2]
[358980957,1745601040937,-500.0,0.00030136,2]
[358980958,1745601040950,-500.0,0.00030136,2]
[358980959,1745601040960,-500.0,0.00030136,2]
[358980960,1745601040971,-500.0,0.00030136,2]
[358980961,1745601040982,-852.25,0.00030136,2]
[358980962,1745601040998,-553.68,0.00030136,2]
[358980963,1745601041010,-563.08164743,0.00030136,2]
[358980964,1745601041022,-618.52,0.00030136,2]
[358980965,1745601041035,-1115.45,0.00030136,2]
[358980966,1745601041047,-680.79,0.00030136,2]
[358980967,1745601041059,-500.0,0.00030136,2]
[358980968,1745601041071,-500.0,0.00030136,2]
[358980969,1745601041082,-735.82,0.00030136,2]
[358980970,1745601041094,-866.06,0.00030136,2]
[358980971,1745601041106,-500.0,0.00030136,2]
[358980972,1745601041119,-500.0,0.00030136,2]
[358980973,1745601041130,-660.92,0.00030136,2]
[358980974,1745601041141,-671.19,0.00030136,2]
[358980975,1745601041154,-609.02290865,0.00030136,2]
[358980976,1745601041168,-571.76,0.00030136,2]
[358980977,1745601041180,-319.84,0.00030136,2]
[358980978,1745601041192,-759.03,0.00030136,2]
[358980979,1745601041203,-500.0,0.00030136,2]
[358980980,1745601041215,-500.0,0.00030136,2]
[358980981,1745601041225,-500.0,0.00030136,2]
[358980982,1745601041236,-890.47,0.00030136,2]
[358980983,1745601041248,-500.0,0.00030136,2]
[358980984,1745601041259,-500.0,0.00030136,2]
[358980985,1745601041269,-622.98,0.00030136,2]
[358980986,1745601041280,-500.0,0.00030136,2]
[358980987,1745601041290,-677.67,0.00030136,2]
[358980988,1745601041301,-163.47800284,0.00030136,2]
[358980989,1745601041312,-500.0,0.00030136,2]
[358980990,1745601041322,-521.75,0.00030136,2]
[358980991,1745601041333,-500.0,0.00030136,2]
[358980992,1745601041343,-500.0,0.00030136,2]
[358980993,1745601041354,-500.0,0.00030136,2]
[358980994,1745601041364,-500.0,0.00030136,2]
[358980995,1745601041374,-667.79,0.00030136,2]
[358980996,1745601041384,-917.68,0.00030136,2]
[358980997,1745601041394,-845.6,0.00030136,2]
[358980998,1745601041404,-500.0,0.00030136,2]
[358980999,1745601041414,-500.0,0.00030136,2]
[358981000,1745601041424,-500.0,0.00030136,2]
[358981001,1745601041440,-777.93,0.00030136,2]
[358981002,1745601041451,-937.17,0.00030136,2]
[358981003,1745601041462,-500.0,0.00030136,2]
[358981004,1745601041473,-500.0,0.00030136,2]
[358981005,1745601041483,-500.0,0.00030136,2]
[358981006,1745601041494,-500.0,0.00030136,2]
[358981007,1745601041505,-623.16,0.00030136,2]
[358981008,1745601041516,-500.0,0.00030136,2]
[358981009,1745601041527,-500.0,0.00030136,2]
[358981010,1745601041539,-500.0,0.00030136,2]
[358981011,1745601041551,-560.12,0.00030136,2]
[358981012,1745601041563,-500.0,0.00030136,2]
[358981013,1745601041573,-500.0,0.00030136,2]
[358981014,1745601041584,-500.0,0.00030136,2]
[358981015,1745601041595,-1488.32,0.00030136,2]
[358981016,1745601041605,-669.38,0.00030136,2]
[358981017,1745601041615,-679.8,0.00030136,2]
[358981018,1745601041626,-500.0,0.00030136,2]
[358981019,1745601041637,-830.44,0.00030136,2]
[358981020,1745601041647,-665.83,0.00030136,2]
[358981021,1745601041658,-698.6,0.00030136,2]
[358981022,1745601041670,-500.0,0.00030136,2]
[358981023,1745601041683,-1432.98,0.00030136,2]
[358981024,1745601041694,-500.0,0.00030136,2]
[358981025,1745601041704,-500.0,0.00030136,2]
[358981026,1745601041716,-500.0,0.00030136,2]
[358981027,1745601041728,-1639.18,0.00030136,2]
[358981028,1745601041739,-500.0,0.00030136,2]
[358981029,1745601041752,-500.0,0.00030136,2]
[358981030,1745601041764,-500.0,0.00030136,2]
[358981031,1745601041774,-755.12,0.00030136,2]
[358981032,1745601041784,-500.0,0.00030136,2]
[358981033,1745601041795,-500.0,0.00030136,2]
[358981034,1745601041806,-500.0,0.00030136,2]
[358981035,1745601041816,-500.0,0.00030136,2]
[358981036,1745601041827,-500.0,0.00030136,2]
[358981037,1745601041838,-500.0,0.00030136,2]
[358981038,1745601041848,-500.0,0.00030136,2]
[358981039,1745601041859,-541.56,0.00030136,2]
[358981040,1745601041870,-500.0,0.00030136,2]
[358981041,1745601041887,-500.46,0.00030136,2]
[358981042,1745601041898,-795.37,0.00030136,2]
[358981043,1745601041909,-500.0,0.00030136,2]
[358981044,1745601041919,-2212.24,0.00030136,2]
[358981045,1745601041930,-560.53397147,0.00030136,2]
[358981046,1745601041940,-500.0,0.00030136,2]
[358981047,1745601041951,-631.7,0.00030136,2]
[358981048,1745601041961,-500.0,0.00030136,2]
[358981049,1745601041972,-570.04218938,0.00030136,2]
[358981050,1745601041982,-239.27904605,0.00030136,2]
[358981051,1745601041992,-500.0,0.00030136,2]
[358981052,1745601042002,-500.0,0.00030136,2]
[358981053,1745601042012,-500.0,0.00030136,2]
[358981054,1745601042022,-500.0,0.00030136,2]
[358981055,1745601042032,-1081.71,0.00030136,2]
[358981056,1745601042042,-537.39,0.00030136,2]
[358981057,1745601042052,-500.0,0.00030136,2]
[358981058,1745601042062,-960.49,0.00030136,2]
[358981059,1745601042072,-500.0,0.00030136,2]
[358981060,1745601042082,-500.0,0.00030136,2]
[358981061,1745601042092,-500.0,0.00030136,2]
[358981062,1745601042102,-514.6295298,0.00030136,2]
[358981063,1745601042112,-500.0,0.00030136,2]
[358981064,1745601042122,-500.0,0.00030136,2]
[358981065,1745601042132,-658.91,0.00030136,2]
[358981066,1745601042142,-500.0,0.00030136,2]
[358981067,1745601042152,-500.0,0.00030136,2]
[358981068,1745601042162,-500.0,0.00030136,2]
[358981069,1745601042175,-894.84,0.00030136,2]
[358981070,1745601042185,-500.0,0.00030136,2]
[358981071,1745601042195,-155.06842293,0.00030136,2]
[358981072,1745601042207,-500.0,0.00030136,2]
[358981073,1745601042218,-500.0,0.00030136,2]
[358981074,1745601042228,-500.0,0.00030136,2]
[358981075,1745601042240,-500.0,0.00030136,2]
[358981076,1745601042251,-500.0,0.00030136,2]
[358981077,1745601042262,-539.4,0.00030136,2]
[358981078,1745601042271,-500.0,0.00030136,2]
[358981079,1745601042281,-684.51,0.00030136,2]
[358981080,1745601042291,-234.12436333,0.00030136,2]
[358981081,1745601042302,-500.0,0.00030136,2]
[358981083,1745601042312,-496.15403073,0.00030136,2]
[358981085,1745601042322,-500.0,0.00030136,2]
[358981087,1745601042332,-500.0,0.00030136,2]
[358981089,1745601042342,-556.76,0.00030136,2]
[358981091,1745601042352,-500.0,0.00030136,2]
[358981092,1745601042362,-500.0,0.00030136,2]
[358981093,1745601042371,-500.0,0.00030136,2]
[358981094,1745601042381,-950.92,0.00030136,2]
[358981095,1745601042391,-500.0,0.00030136,2]
[358981096,1745601042402,-500.0,0.00030136,2]
[358981097,1745601042411,-300.0,0.00030136,2]
[358981099,1745601042555,-500.0,0.00030136,2]
[358981100,1745601042565,-500.0,0.00030136,2]
[358981101,1745601042575,-500.0,0.00030136,2]
[358981102,1745601042585,-500.0,0.00030136,2]
[358981103,1745601042595,-2348.09,0.00030136,2]
[358981104,1745601042604,-500.0,0.00030136,2]
[358981105,1745601042613,-500.0,0.00030136,2]
[358981106,1745601042622,-675.52,0.00030136,2]
[358981107,1745601042632,-500.0,0.00030136,2]
[358981108,1745601042642,-500.0,0.00030136,2]
[358981109,1745601042652,-500.0,0.00030136,2]
[358981110,1745601042665,-500.0,0.00030136,2]
[358981111,1745601042675,-901.79,0.00030136,2]
[358981112,1745601042685,-500.0,0.00030136,2]
[358981113,1745601042695,-500.0,0.00030136,2]
[358981114,1745601042705,-658.48,0.00030136,2]
[358981115,1745601042714,-770.38,0.00030136,2]
[358981116,1745601042724,-219.53520427,0.00030136,2]
[358981117,1745601042733,-500.0,0.00030136,2]
[358981118,1745601042744,-500.0,0.00030136,2]
[358981119,1745601042754,-500.0,0.00030136,2]
[358981120,1745601042764,-500.0,0.00030136,2]
[358981121,1745601042774,-576.87411685,0.00030136,2]
[358981122,1745601042785,-1648.72,0.00030136,2]
[358981123,1745601042795,-500.0,0.00030136,2]
[358981124,1745601042807,-846.62,0.00030136,2]
[358981125,1745601042817,-791.21,0.00030136,2]
[358981126,1745601042827,-514.16,0.00030136,2]
[358981127,1745601042837,-500.0,0.00030136,2]
[358981128,1745601042847,-500.0,0.00030136,2]
[358981129,1745601042857,-500.0,0.00030136,2]
[358981130,1745601042866,-500.0,0.00030136,2]
[358981131,1745601042877,-758.52,0.00030136,2]
[358981132,1745601042888,-581.5145417,0.00030136,2]
[358981134,1745601042898,-500.0,0.00030136,2]
[358981136,1745601042907,-500.0,0.00030136,2]
[358981138,1745601042916,-1112.33,0.00030136,2]
[358981140,1745601042927,-1112.33,0.00030136,2]
[358981142,1745601042936,-1112.33,0.00030136,2]
[358981143,1745601042946,-1112.33,0.00030136,2]
[358981146,1745601042955,-500.0,0.00030136,2]
[358981147,1745601042965,-928.26,0.00030136,2]
[358981148,1745601042974,-500.0,0.00030136,2]
[358981150,1745601042984,-1112.33,0.00030136,2]
[358981151,1745601042994,-1112.33,0.00030136,2]
[358981152,1745601043004,-500.0,0.00030136,2]
[358981154,1745601043013,-636.67,0.00030136,2]
[358981156,1745601043023,-1112.33,0.00030136,2]
[358981157,1745601043033,-1084.23,0.00030136,2]
[358981158,1745601043043,-1112.33,0.00030136,2]
[358981159,1745601043054,-527.98349465,0.00030136,2]
[358981160,1745601043065,-1112.33,0.00030136,2]
[358981161,1745601043075,-512.90801879,0.00030136,2]
[358981162,1745601043084,-1112.33,0.00030136,2]
[358981163,1745601043094,-1112.33,0.00030136,2]
[358981164,1745601043105,-1112.33,0.00030136,2]
[358981165,1745601043114,-1112.33,0.00030136,2]
[358981166,1745601043125,-500.0,0.00030136,2]
[358981167,1745601043135,-1112.33,0.00030136,2]
[358981168,1745601043144,-1112.33,0.00030136,2]
[358981169,1745601043154,-1404.22,0.00030136,2]
[358981170,1745601043165,-1112.33,0.00030136,2]
[358981171,1745601043176,-1112.33,0.00030136,2]
[358981172,1745601043188,-500.0,0.00030136,2]
[358981173,1745601043198,-1112.33,0.00030136,2]
[358981174,1745601043209,-1112.33,0.00030136,2]
[358981175,1745601043218,-500.0,0.00030136,2]
[358981176,1745601043229,-1112.33,0.00030136,2]
[358981177,1745601043238,-1112.33,0.00030136,2]
[358981178,1745601043249,-1112.33,0.00030136,2]
[358981179,1745601043259,-1112.33,0.00030136,2]
[358981180,1745601043269,-1112.54758384,0.00030136,2]
[358981181,1745601043279,-500.0,0.00030136,2]
[358981182,1745601043289,-500.0,0.00030136,2]
[358981183,1745601043299,-500.0,0.00030136,2]
[358981184,1745601043308,-500.0,0.00030136,2]
[358981185,1745601043317,-500.0,0.00030136,2]
[358981186,1745601043327,-500.0,0.00030136,2]
[358981187,1745601043337,-216.72474542,0.00030136,2]
[358981188,1745601043346,-526.17,0.00030136,2]
[358981189,1745601043355,-908.7807381,0.00030136,2]
[358981190,1745601043463,-20.1392619,0.00030136,2]